Cogmind - Beta 14 @@@ ROGUE MODE // 2024.10.01 @ 12:32:49 Player: Tereza Result: Destroyed by H-61 Shepherd with Heavy Assault Cannon Performance ------------- Evolutions (2) 1000 Regions Visited (4) 800 Robots Destroyed (41) 205 Value Destroyed (1286) 1286 Prototype IDs (0) 0 Alien Tech Used (0) 0 Bonus (0) 0 TOTAL SCORE: 3291 Bonus ------- None Cogmind --------- Core Integrity 0/550 Matter 197/300 Energy 100/100 System Corruption 2% Temperature Cool (0) Movement Rolling (80) Location -8/Materials Parts ------- > --- POWER (1) -------- (None) > --- PROPULSION (3) --- Wheel > --- UTILITY (5) ------ Medium Storage Unit System Shield > --- WEAPON (2) ------- (None) > --- INVENTORY (10) --- Light Nuclear Core Wheel Medium Storage Unit Heavy Particle Cannon Heavy Assault Rifle Rocket Launcher Peak State ------------ > --- POWER ------------ Ion Engine > --- PROPULSION ------- Aluminum Leg Aluminum Leg Aluminum Leg > --- UTILITY ---------- Medium Storage Unit Trap Scanner Sensor Array Recoil Stabilizer Light Armor Plating > --- WEAPON ----------- Beam Rifle Particle Gun > --- INVENTORY -------- Light Ion Engine Light Treads Wheel Medium Storage Unit Light Assault Rifle Heavy Assault Rifle Rocket Launcher Rocket Launcher [Rating: 18] Favorites ----------- Power Ion Engine Engine Ion Engine Power Core Light Nuclear Core Propulsion Light Treads Treads Light Treads Leg Aluminum Leg Wheel Wheel Utility Medium Storage Unit Device Trap Scanner Storage Medium Storage Unit Processor Signal Interpreter Hackware System Shield Protection Light Armor Plating Weapon Beam Rifle Energy Gun Beam Rifle Energy Cannon Heavy Particle Cannon Ballistic Gun Assault Rifle Launcher Rocket Launcher Build | -11 -10 -9 -9 -8 ------- Run | Yrd Mat Mat Min Mat Slots Evolved 4 | . . 2 . 2 Power . | . . . . . Propulsion 1 | . . . . 1 Utility 3 | . . 2 . 1 Weapon . | . . . . . Parts Attached 39 | 5 2 6 4 22 Power 4 | 1 . . . 3 Engine 3 | 1 . . . 2 Core 1 | . . . . 1 Reactor . | . . . . . Propulsion 11 | 2 . . 2 7 Treads 2 | 2 . . . . Leg 6 | . . . 2 4 Wheel 3 | . . . . 3 Hover . | . . . . . Flight . | . . . . . Utility 12 | 1 1 3 2 5 Device 5 | . . 1 1 3 Storage 2 | 1 . 1 . . Processor 1 | . 1 . . . Hackware 1 | . . . . 1 Protection 3 | . . 1 1 1 Artifact . | . . . . . Weapon 12 | 1 1 3 . 7 Energy Gun 4 | . 1 2 . 1 Energy Cannon 1 | . . . . 1 Ballistic Gun 4 | 1 . 1 . 2 Ballistic Cannon . | . . . . . Launcher 3 | . . . . 3 Special Weapon . | . . . . . Impact Weapon . | . . . . . Slashing Weapon . | . . . . . Piercing Weapon . | . . . . . Special Melee Weapon . | . . . . . Unidentified Prototypes . | . . . . . Parts Lost 23 | . . . 3 20 Power 3 | . . . . 3 Propulsion 8 | . . . 1 7 Utility 7 | . . . 2 5 Weapon 5 | . . . . 5 Highest Loss Streak 10 | . . . 1 10 To Critical Strikes . | . . . . . Average Slot Usage (%) 84 | . 84 88 90 79 Engine 9 | . 14 11 11 5 Treads 13 | . 28 22 18 . Leg 7 | . . . 2 19 Device 10 | . . 6 10 18 Storage 10 | . 14 11 11 9 Processor 4 | . 2 11 3 . Protection 5 | . . 4 11 6 Energy Gun 12 | . 10 14 22 8 Ballistic Gun 5 | . 14 7 . 3 Launcher 1 | . . . . 3 Peak Build Rating 18 | 5 7 14 14 18 Average Rating 10 | 3 5 10 11 14 On Entrance 7 | . 5 7 14 11 Naked Turns . | . . . . . Heaviest Build 30 | 12 14 30 29 28 Greatest Support 40 | 40 40 40 40 30 Greatest Overweight (x) 4 | . . . 1 4 Average Overweight (x) . | . . . . . Largest Inventory Capacity 10 | 8 8 10 10 10 Average Capacity 9 | 6 8 8 10 10 Most Carried 10 | 7 8 9 9 10 Average Carried 7 | 5 6 8 8 7 Final Capacity 10 | 8 8 10 10 10 Final Carried 9 | 7 8 9 9 6 Class Distribution -------------------- 67% | Mutant 32% | Scavenger-Mutant Dominant Class ---------------- Mutant | -10/Materials Mutant | -9/Materials Mutant | -9/Mines Scavenger-Mutant | -8/Materials Resources | -11 -10 -9 -9 -8 ----------- Run | Yrd Mat Mat Min Mat Matter Collected 584 | 224 58 100 40 162 Remotely . | . . . . . Salvage Created 1354 | . 103 364 225 662 Parts 72 | . 14 21 7 30 Haulers Intercepted 1 | . . 1 . . Recyclers Shooed . | . . . . . Parts Field Recycled . | . . . . . Retrieved Matter . | . . . . . Parts Self-Destructed . | . . . . . Prevented . | . . . . . Kills | -11 -10 -9 -9 -8 ------- Run | Yrd Mat Mat Min Mat Combat Hostiles Destroyed 29 | . 3 5 5 16 Guns 18 | . 3 5 4 6 Cannons 2 | . . . . 2 AOE 8 | . . . . 8 Classes Destroyed 10 | . 2 4 . 4 Worker 3 | . . 1 . 2 Builder 3 | . . . . 3 Hauler 1 | . . 1 . . Recycler 1 | . . . . 1 Watcher 4 | . 2 2 . . Swarmer 3 | . 3 . . . Grunt 18 | . . 2 5 11 Duelist 1 | . . . . 1 Sentry 6 | . . 3 . 3 Hunter 1 | . . . . 1 Best Kill Streak 9 | . 5 3 2 9 Combat Bots Only 6 | . 3 2 2 6 Max Kills in Single Turn 3 | . 2 1 1 3 Gunslinging 1 | . 1 . . . Exploded 2 | . . . . 2 Melee . | . . . . . Uniques/NPCs Destroyed . | . . . . . Combat | -11 -10 -9 -9 -8 -------- Run | Yrd Mat Mat Min Mat Hostile Shots Fired 212 | . 3 26 29 154 Missed 48 | . 2 6 7 33 Damage Taken 2816 | . 10 308 312 2186 Core 645 | . . 44 24 577 Absorbed by Shields . | . . . . . Core Remaining (%) 94 | 100 100 . 83 . Volleys Fired 112 | . 4 23 20 65 Largest 2 | . 2 2 2 2 Hottest 121 | . 70 121 121 121 Shots Fired 201 | . 8 45 40 108 Gun 179 | . 8 45 40 86 Cannon 14 | . . . . 14 Launcher 8 | . . . . 8 Special . | . . . . . Kinetic 59 | . 4 16 . 39 Thermal 134 | . 4 29 40 61 Explosive 8 | . . . . 8 Electromagnetic . | . . . . . Robot Hit Streak 13 | . 4 13 6 11 Robot Miss Streak 3 | . 1 2 2 3 Penetration Max . | . . . . . Secondary Targets 2 | . 1 1 . . Max Gunslinging Chain 1 | . 1 1 . . Shots Hit Robots 152 | . 5 35 27 85 Core Hits 84 | . 5 16 9 54 Critical Kills . | . . . . . Critical Parts Destroyed . | . . . . . Critical Strikes 12 | . . 5 2 5 Burn 12 | . . 5 2 5 Melee Attacks . | . . . . . Impact . | . . . . . Slashing . | . . . . . Piercing . | . . . . . Sneak Attacks . | . . . . . Combat Hostiles . | . . . . . Follow-up Attacks . | . . . . . Damage Inflicted 3159 | . 59 452 400 2248 Guns 1761 | . 59 452 400 850 Cannons 250 | . . . . 250 Explosions 1147 | . . . . 1147 Melee . | . . . . . Ramming 1 | . . . . 1 Kinetic 417 | . 23 136 . 258 Thermal 1594 | . 36 316 400 842 Explosive 1147 | . . . . 1147 Electromagnetic . | . . . . . Impact . | . . . . . Slashing . | . . . . . Piercing . | . . . . . Highest Corruption 2 | . 1 . . 2 Average Corruption 1 | . 1 . . 1 Corruption Purged . | . . . . . Corruption Blocked . | . . . . . Effects 4 | . 1 . . 3 Message Errors 2 | . 1 . . 1 Matter Fused 1 | . . . . 1 Parts Rejected 1 | . . . . 1 Overload Shots . | . . . . . Overflow Damage 33 | . . . . 33 Projectiles . | . . . . . Explosions 33 | . . . . 33 Melee . | . . . . . Knockbacks . | . . . . . Impact . | . . . . . Kinetic . | . . . . . Secondary . | . . . . . Self-Inflicted Damage 311 | . . . . 311 Shots 7 | . . . . 7 Rammed 1 | . . . . 1 Targets Rammed 1 | . . . . 1 Kicked . | . . . . . Crushed . | . . . . . Highest Temperature 412 | . 27 7 412 273 Average Temperature 120 | . 12 4 185 75 Received Heat Transfer 1092 | . . 99 183 810 Effects 4 | . . . 4 . Shutdowns 1 | . . . 1 . Short Circuit 1 | . . . 1 . Damage (minor) 2 | . . . 2 . Siege Activations . | . . . . . Robots Corrupted . | . . . . . Combat Hostiles . | . . . . . Parts Fried . | . . . . . Impact Corruptions . | . . . . . Robots Melted 1 | . . . 1 . Combat Hostiles 1 | . . . 1 . Parts Melted 15 | . . 4 1 10 Heat Transferred 4662 | . 111 1184 1147 2220 Parts Sabotaged . | . . . . . Parts Stolen . | . . . . . Parts Stripped . | . . . . . Power Chain Reactions . | . . . . . Alert | -11 -10 -9 -9 -8 ------- Run | Yrd Mat Mat Min Mat Peak Influence 298 | . 84 232 101 298 Initial 39 | . . 35 21 39 Average 87 | . 20 66 59 151 Maximum Alert Level 1 | . . 1 . 1 Low Security (%) 84 | 100 100 98 100 60 Level 1 15 | . . 1 . 39 Level 2 . | . . . . . Level 3 . | . . . . . Level 4 . | . . . . . Level 5 . | . . . . . High Security . | . . . . . Max Security . | . . . . . Squads Dispatched 4 | . . . . 4 Investigation . | . . . . . Extermination . | . . . . . Reinforcement 4 | . . . . 4 Assault . | . . . . . Garrison . | . . . . . Intercept . | . . . . . Searches Triggered . | . . . . . Construction Impeded 2 | . . . . 2 Haulers Reinforced . | . . . . . Active Scanning Responses . | . . . . . Cargo Convoy Interrupts . | . . . . . Stealth | -11 -10 -9 -9 -8 --------- Run | Yrd Mat Mat Min Mat Distress Signals 5 | . 1 1 . 3 Communications Jammed . | . . . . . Distress Signals . | . . . . . Times Spotted 53 | . 4 11 5 33 Peak Tracking Total 9 | . 3 4 3 9 Tactical Retreats 1 | . . . . 1 Traps | -11 -10 -9 -9 -8 ------- Run | Yrd Mat Mat Min Mat Traps Triggered 3 | . 1 . . 2 Indirectly . | . . . . . Trap Hack Attempts . | . . . . . Triggered . | . . . . . Disarmed . | . . . . . Reprogrammed . | . . . . . Reused . | . . . . . Traps Extracted . | . . . . . Installed . | . . . . . Triggered . | . . . . . Machines | -11 -10 -9 -9 -8 ---------- Run | Yrd Mat Mat Min Mat Machines Disabled 1 | . . . . 1 Max in Single Turn 1 | . . . . 1 Machines Repaired . | . . . . . Machines Dismantled . | . . . . . Machines Sabotaged . | . . . . . Overloaded Fab Kills . | . . . . . Hacking | -11 -10 -9 -9 -8 --------- Run | Yrd Mat Mat Min Mat Machines Accessed 10 | . 1 4 . 5 Terminals 9 | . 1 4 . 4 Fabricators . | . . . . . Repair Stations . | . . . . . Recycling Units . | . . . . . Scanalyzers . | . . . . . Garrison Access 1 | . . . . 1 Total Hacks 24 | . 1 10 . 13 Successful 8 | . . 3 . 5 Failed 16 | . 1 7 . 8 Catastrophic 3 | . 1 1 . 1 Database Lockouts . | . . . . . Manual 9 | . . 3 . 6 Terminals 19 | . 1 10 . 8 Fabricators . | . . . . . Repair Stations . | . . . . . Recycling Units . | . . . . . Scanalyzers . | . . . . . Garrison Access 5 | . . . . 5 Terminal Hacks 3 | . . 2 . 1 Branch Access Points 1 | . . . . 1 Transport Status 1 | . . 1 . . Hauler Manifests 1 | . . 1 . . Fabricator Hacks . | . . . . . Repair Station Hacks . | . . . . . Recycling Unit Hacks . | . . . . . Scanalyzer . | . . . . . Garrison Access Hacks 1 | . . . . 1 Coupler Status 1 | . . . . 1 Unauthorized Hacks 4 | . . 1 . 3 Terminals 4 | . . 1 . 3 Track 4 | . . 1 . 3 Fabricators . | . . . . . Repair Stations . | . . . . . Recycling Units . | . . . . . Scanalyzers . | . . . . . Garrison Access . | . . . . . Data Cores Recovered . | . . . . . Used . | . . . . . Hacking Detections 6 | . 1 2 . 3 Full Trace Events 2 | . . 1 . 1 Feedback Events . | . . . . . Feedback Blocked . | . . . . . Robot Schematics Acquired . | . . . . . Robots Built . | . . . . . Authchips . | . . . . . Time . | . . . . . Total Robot Build Rating . | . . . . . Part Schematics Acquired . | . . . . . Parts Built . | . . . . . Authchips . | . . . . . Time . | . . . . . Total Part Build Rating . | . . . . . Parts Repaired . | . . . . . Time . | . . . . . Parts Recycled . | . . . . . Recycled Matter . | . . . . . Retrieved Matter . | . . . . . Retrieved Components . | . . . . . Parts Scanalyzed . | . . . . . Part Schematics Acquired . | . . . . . Parts Damaged . | . . . . . Bothacking | -11 -10 -9 -9 -8 ------------ Run | Yrd Mat Mat Min Mat Used RIF Installer . | . . . . . Robots Hacked . | . . . . . Non-combat . | . . . . . Combat . | . . . . . Robot Hacks Applied . | . . . . . Relay Couplers Released . | . . . . . Fabnet Peak Effective % . | . . . . . Robots Rewired . | . . . . . Allies Hacked . | . . . . . Hacks Repelled . | . . . . . Allies | -11 -10 -9 -9 -8 -------- Run | Yrd Mat Mat Min Mat Total Allies . | . . . . . Largest Group . | . . . . . Highest-Rated Group . | . . . . . Highest-Rated Ally . | . . . . . Total Orders . | . . . . . Ally Attacks . | . . . . . Total Damage . | . . . . . Kills . | . . . . . Allies Corrupted . | . . . . . Allies Melted . | . . . . . Intel | -11 -10 -9 -9 -8 ------- Run | Yrd Mat Mat Min Mat Robot Analysis Total . | . . . . . Derelict Logs Recovered . | . . . . . Drone Launches . | . . . . . Drone Recoveries . | . . . . . Exploration | -11 -10 -9 -9 -8 ------------- Run | Yrd Mat Mat Min Mat Turns Passed 1465 | 86 166 506 171 536 Spaces Moved 696 | 46 94 250 58 248 Core 2 | 1 . . . 1 Treads 440 | 45 94 250 51 . Legs 180 | . . . 7 173 Wheels 74 | . . . . 74 Hover . | . . . . . Flight . | . . . . . Fastest Speed 50 | 50 160 160 160 80 Average Speed 147 | 157 160 160 167 124 Slowest Speed 260 | 160 160 160 240 260 Overloaded Moves . | . . . . . Propulsion Burnouts . | . . . . . Robots Hopped . | . . . . . Cave-ins Triggered . | . . . . . Exploration Rate (%) 18 | 4 19 28 9 33 Regions Visited 4 Branch Regions 1 Pre-discovered Areas . | . . . . . Known Exits Taken 2 | . 1 1 . . Unknown Exits Taken 2 | 1 . . 1 . Scrap Searched 1 | . . . 1 . Spaces Dug . | . . . . . Terrain Destroyed 41 | . . . . 41 Melee . | . . . . . Projectile 4 | . . . . 4 AOE 37 | . . . . 37 Terrain Rammed . | . . . . . Walls Destroyed . | . . . . . Machines Disabled . | . . . . . Actions | -11 -10 -9 -9 -8 --------- Run | Yrd Mat Mat Min Mat Total 935 | 57 103 314 93 368 Wait 56 | . . 25 8 23 Move 692 | 45 93 249 57 248 Hop . | . . . . . Pick Up 23 | 7 3 4 2 7 Fast Attach 19 | 5 1 4 1 8 Attach 15 | . 1 1 3 10 Detach 3 | . . 1 2 . Swap 5 | . . 1 . 4 Drop 9 | . 1 6 . 2 Fire 112 | . 4 23 20 65 Melee . | . . . . . Ram 1 | . . . . 1 Kick . | . . . . . Crush . | . . . . . Escape Stasis . | . . . . . Rewire . | . . . . . Trap . | . . . . . Miscellaneous . | . . . . . Route ------- -11/Scrapyard -10/Materials -9/Materials -9/Mines -8/Materials History --------- Turn | Location | Event 43 | -11/Scrapyard | Discovered new exit (range 14) 87 | -11/Scrapyard | Entered Materials 186 | -10/Materials | Discovered new exit (range 14) 242 | -10/Materials | Identified exit to Materials 253 | -10/Materials | Entered another Materials area 253 | -9/Materials | Evolved 2 slots: Utility x2 310 | -9/Materials | Build established: Mutant 743 | -9/Materials | Discovered new exit (range 8) 757 | -9/Materials | Identified exit to Mines 759 | -9/Materials | Entered Mines 883 | -9/Mines | Discovered new exit (range 8) 898 | -9/Mines | Received a Rocket Launcher from a helpful Derelict 930 | -9/Mines | Entered Materials 930 | -8/Materials | Evolved 2 slots: Propulsion x1, Utility x1 1223 | -8/Materials | Build established: Scavenger-Mutant 1230 | -8/Materials | Lost 7 parts (1p1n2u3w) 1370 | -8/Materials | Core integrity fell below 50% 1386 | -8/Materials | Core integrity fell below 20% 1416 | -8/Materials | Lost 10 parts (2p3n3u2w) 1466 | -8/Materials | Destroyed by H-61 Shepherd with Heavy Assault Cannon Last Messages --------------- K-01 Serf collects debris. Acquired Wheel. K-01 Serf collects debris. U-05 Engineer builds a Door. U-05 Engineer lays Concrete. System corrupted: Wheel rejected. Acquired System Shield. Connecting with Terminal... >>Trojan(Track) Trojan loaded successfully. Testing... Tracking enabled and active. Connecting with Terminal... Acquired Wheel. ALERT: Suspicious intruders detected, dispatching Cutter reinforcements to area. Slammed into S-10 Pest. Aluminum Leg destroyed. Shock Rifle severed. Wheel destroyed. Map ----- +----------------------------------------------------+ | ???????# """" #????????# ##+#+######### | | ???????##### """" #????????## ### ???????# | | ???????????# #????????# ?# !??????# | | ???????????# #????????# # #????# | | ???????????# """" #+######## ## #????# | | ???????????# """" # ## ## "Y" #????# | | ???????????# """" / !! #?##?# """ #????# | | ???????????+ # !! #????########????# | | ???????????# # ! ! #????????????????# | | ???????????######### ### # #????????????????# | | ???????????????????# #?# # #????????????????# | | ???????????????????# #?# ##/#####????????????????# | | ???????????????????# #?# #????????????????????# | | ???????????????????# #?# #???????????????????## | | ???????????????????# #?# #???????????????????# | | ???????????????????? #?# #???????????????????# | | ???????????????????? #?#### #???????????????????# | | ???????????????????? #????# #???????????????????# | | ???????????????????? ?????# #???????????????????# | | ???????????????????? ???###+#####???????????????# | | ???????????????????? ???# s #???????????????# | | ???????????????????? ???#c""" #???????????????# | | ??????????? ?????##????#s"R" #???????????????## | | ??????????[ #t /??#%" " !#????????????????# | | ?????????? # c[ #????????????????# | | ?????????? H/@ c] #????????????????# | | ?????????? ! # Y#????????????????# | | ?????????? #### ?# """"" ;#??????????????# | | ??????????????????## ??# """"" ###?????????#????# | | ???????????????????# ???# """"" #???????????# #### | | ????????????????????????# #???????????# | | ????????????????????????#########???????????# | | ??????????????????????????????????????????### | | ??????????????????????????????????????# | | ??????????????????????????????????????+ | | ??????????????????????????????????????# | | ???????????????????????????????????????##+######## | | ???????????????????????????????????????????# | | ???????????????????????????????????????????# | | ???????????????????????????????????????????# """"" | | ???????????????????????????????????????????# """"" | | ??????????????????????????????????????????????"""" | | ???????????????????????????????????????????????""" | | ???????????????????????????????????????????????""" | | ??????????????????????????????????????????????? | | ???????????????????????????????????????????????### | | ?????????????????????????????????????????????????? | | ?????????????????????????????????????????????????? | | ?????????????????????????????????????????????????? | | | +----------------------------------------------------+ Best States ------------- Heat Dissipation 50 Energy Generation 14 Energy Capacity 250 Matter Stores 300 Matter Capacity 300 Sight Range 16 Robot Scan Range 14 Terrain Scan Density 10 Armor Coverage 225 Evasion (%) 55 Recoil Reduction 4 Defensive Hacking 10 Item Schematics ----------------- None Robot Schematics ------------------ None Fabricated ------------ Nothing Alien Tech Used ----------------- None Achievements -------------- None Challenges ------------ None Game ------ Seed MetafieldSpreadSaw Manual? 0 Play Time 00:18:37 Cumulative 53.5 hours Start 2024.10.01 @ 11:51:52 End 2024.10.01 @ 12:32:49 Sessions 1 Manual Loads 0 Difficulty Rogue Special Mode None Game No. 58 Rogue 58 Adventurer 0 Explorer 0 Win Type - Total 0 Types 0/0/0/0/0/0/0/0/0 Lore% 36 Gallery% 38 Achievement% 32 Wizard Run 0 Options --------- Layout 1 ASCII 0 Keyboard 1 Movement Numpad Keybinds 0 Fullscreen 1 Font 24/Smallcaps Map View 50x35 Zoom Use 0% Tactical HUD 0 Map Filters NONE Filters NONE Steam 1 RUN: 59e2170b-fb50-4556-b448-d0ef827a85fc